fUST/lending_fUST_20251110
["ID","MTS","AMOUNT","RATE_DAILY","PERIOD"]
[393526212,1762763432325,-300.0,0.00018336,2]
[393526214,1762763432335,-300.0,0.00018336,2]
[393526216,1762763432344,-300.0,0.00018336,2]
[393526218,1762763432352,-300.0,0.00018336,2]
[393526220,1762763432362,-300.0,0.00018336,2]
[393526222,1762763432371,-300.0,0.00018336,2]
[393526225,1762763432381,-300.0,0.00018336,2]
[393526228,1762763432390,-165.21667366,0.00018336,2]
[393526230,1762763432401,-134.78332634,0.00018336,2]
[393526232,1762763432412,-500.0,0.0001838,2]
[393526234,1762763432422,-1000.0,0.00018548,2]
[393526236,1762763432430,-500.0,0.00018575,2]
[393526238,1762763432440,-500.0,0.00018575,2]
[393526240,1762763432450,-500.0,0.00018587,2]
[393526242,1762763432459,-600.0,0.00018702,2]
[393526244,1762763432469,-500.0,0.00018767,2]
[393526246,1762763432478,-500.0,0.00018767,2]
[393526248,1762763432486,-500.0,0.00018767,2]
[393526250,1762763432496,-245.16709414,0.00018826,2]
[393526252,1762763432505,-175.51854952,0.00018826,2]
[393526254,1762763432513,-500.0,0.00018827,2]
[393526256,1762763432522,-500.0,0.00018827,2]
[393526258,1762763432530,-476.85457737,0.00018827,2]
[393526260,1762763432539,-503.94670184,0.00018827,2]
[393526262,1762763432549,-500.0,0.00018827,2]
[393526264,1762763432559,-1000.0,0.00018928,2]
[393526266,1762763432568,-500.0,0.00019018,2]
[393526268,1762763432577,-501.73830465,0.00019018,2]
[393526270,1762763432586,-735.18853791,0.00019058,2]
[393526272,1762763432595,-509.31614139,0.00019096,2]
[393526274,1762763432604,-500.0,0.00019101,2]
[393526276,1762763432614,-1000.0,0.00019123,2]
[393526278,1762763432623,-460.00410667,0.00019123,2]
[393526280,1762763432632,-1000.0,0.00019135,2]
[393526282,1762763432642,-500.50435248,0.0001928,2]
[393526284,1762763432651,-500.0,0.0001928,2]
[393526286,1762763432660,-500.0,0.0001928,2]
[393526288,1762763432669,-501.1527927,0.0001928,2]
[393526290,1762763432678,-525.12265496,0.0001928,2]
[393526292,1762763432687,-500.0,0.0001928,2]
[393526298,1762763432788,-500.0,0.0001928,2]
[393526299,1762763432802,-500.0,0.0001928,2]
[393526300,1762763432812,-500.0,0.0001928,2]
[393526301,1762763432826,-500.0,0.0001928,2]
[393526302,1762763432836,-500.0,0.0001928,2]
[393526303,1762763432846,-500.0,0.0001928,2]
[393526304,1762763432857,-502.51132251,0.0001928,2]
[393526305,1762763432870,-1000.0,0.00019315,2]
[393526306,1762763432880,-1000.0,0.00019315,2]
[393526307,1762763432890,-1000.0,0.00019315,2]
[393526308,1762763432900,-1000.0,0.00019375,2]
[393526309,1762763432910,-1000.0,0.00019375,2]
[393526310,1762763432919,-500.0,0.00019375,2]
[393526311,1762763432929,-585.09824827,0.00019404,2]
[393526312,1762763432939,-500.0,0.00019404,2]
[393526313,1762763432949,-500.0,0.00019404,2]
[393526314,1762763432958,-507.42107441,0.00019476,2]
[393526315,1762763432968,-510.08784499,0.00019566,2]
[393526316,1762763432977,-1680.0,0.00019613,2]
[393526317,1762763432986,-381.0,0.00019613,2]
[393526318,1762763432995,-420.0,0.00019613,2]
[393526319,1762763433005,-420.0,0.00019613,2]
[393526320,1762763433013,-151.0,0.00019614,2]
[393526321,1762763433023,-151.0,0.00019614,2]
[393526322,1762763433032,-816.0,0.00019614,2]
[393526323,1762763433041,-500.0,0.00019614,2]
[393526324,1762763433050,-152.59729801,0.00019614,2]
[393526325,1762763433059,-198.0,0.00019614,2]
[393526326,1762763433068,-151.99720785,0.00019614,2]
[393526327,1762763433077,-193.04631888,0.00019614,2]
[393526328,1762763433086,-151.0,0.00019614,2]
[393526329,1762763433095,-422.67097124,0.00019649,2]
[393526330,1762763433105,-151.0,0.00019669,2]
[393526331,1762763433116,-151.0,0.00019669,2]
[393526332,1762763433124,-816.0,0.00019669,2]
[393526333,1762763433133,-500.0,0.00019669,2]
[393526334,1762763433143,-288.47136885,0.00019669,2]
[393526335,1762763433152,-1500.0,0.00019671,2]
[393526336,1762763433161,-1500.0,0.00019683,2]
[393526337,1762763433170,-160.0,0.00019707,2]
[393526338,1762763433179,-1680.0,0.0001971,2]
[393526339,1762763433189,-151.0,0.00019724,2]
[393526340,1762763433197,-198.0,0.00019724,2]
[393526341,1762763433207,-816.0,0.00019724,2]
[393526342,1762763433216,-500.0,0.00019724,2]
[393526343,1762763433225,-179.60642039,0.00019778,2]
[393526344,1762763433234,-816.0,0.00019778,2]
[393526345,1762763433243,-500.0,0.00019778,2]
[393526346,1762763433252,-735.18853791,0.00019795,2]
[393526347,1762763433261,-1000.0,0.00019828,2]
[393526348,1762763433270,-1000.0,0.00019828,2]
[393526349,1762763433279,-1000.0,0.00019828,2]
[393526350,1762763433288,-1000.0,0.00019828,2]
[393526351,1762763433298,-1000.0,0.00019828,2]
[393526352,1762763433307,-1000.0,0.00019828,2]
[393526353,1762763433317,-1000.0,0.00019828,2]
[393526354,1762763433326,-816.0,0.00019833,2]
[393526355,1762763433335,-500.0,0.00019833,2]
[393526356,1762763433345,-527.69603334,0.00019863,2]
[393526357,1762763433354,-491.40543003,0.00019863,2]
[393526358,1762763433363,-1500.0,0.00019863,2]
[393526359,1762763433372,-816.0,0.00019888,2]
[393526360,1762763433383,-448.20839093,0.00019888,2]
[393526361,1762763433392,-218.89233197,0.0001989,2]
[393526362,1762763433401,-1500.0,0.00019923,2]
[393526363,1762763433410,-1500.0,0.00019923,2]
[393526364,1762763433419,-816.0,0.00019943,2]
[393526365,1762763433428,-1000.0,0.00019952,2]
[393526366,1762763433437,-816.0,0.00019998,2]
[393526367,1762763433447,-816.0,0.00020052,2]
[393526368,1762763433456,-816.0,0.00020107,2]
[393526369,1762763433466,-816.0,0.00020162,2]
[393526370,1762763433476,-345.34078183,0.000202,2]
[393526371,1762763433487,-816.0,0.00020217,2]
[393526372,1762763433496,-1004.70653445,0.00020219,2]
[393526373,1762763433506,-319.0,0.0002022,2]
[393526374,1762763433515,-2000.0,0.00020231,2]
[393526375,1762763433524,-260.0,0.00020255,2]
[393526376,1762763433533,-816.0,0.00020272,2]
[393526377,1762763433542,-816.0,0.00020326,2]
[393526378,1762763433551,-1500.0,0.00020376,2]
[393526379,1762763433561,-500.0,0.00020376,2]
[393526380,1762763433570,-1137.95394483,0.00020376,2]
[393526381,1762763433580,-1500.0,0.00020376,2]
[393526382,1762763433589,-1500.0,0.00020376,2]
[393526383,1762763433598,-1500.0,0.00020376,2]
[393526384,1762763433607,-695.62038484,0.00020376,2]
[393526385,1762763433617,-816.0,0.00020381,2]
[393526386,1762763433626,-154.843334,0.0002039,7]
[393526387,1762763433636,-2000.0,0.00020411,2]
[393526388,1762763433646,-378.0,0.00020412,2]
[393526389,1762763433655,-816.0,0.00020436,2]
[393526390,1762763433664,-155.43019169,0.00020471,2]
[393526391,1762763433673,-2000.0,0.00020471,2]
[393526392,1762763433683,-816.0,0.00020491,2]
[393526393,1762763433692,-1500.0,0.000205,2]
[393526394,1762763433701,-735.18853791,0.00020532,2]
[393526395,1762763433711,-816.0,0.00020546,2]
[393526396,1762763433720,-500.0,0.00020547,2]
[393526397,1762763433729,-720.0,0.00020572,2]
[393526398,1762763433738,-816.0,0.000206,2]
[393526399,1762763433751,-816.0,0.00020655,2]
[393526400,1762763433760,-250.69,0.00020662,10]
[393526401,1762763433769,-4050.51649476,0.00020672,2]
[393526402,1762763433778,-816.0,0.0002071,2]
[393526403,1762763433789,-816.0,0.00020765,2]
[393526404,1762763433802,-1163.05349914,0.00020779,2]
[393526405,1762763433814,-360.0,0.00020803,2]
[393526406,1762763433829,-4050.51649476,0.00020816,2]
[393526407,1762763433842,-816.0,0.00020819,2]
[393526408,1762763433854,-838.22874893,0.00020874,2]
[393526409,1762763433866,-1369.34854681,0.00020924,2]
[393526410,1762763433876,-2000.0,0.00020924,2]
[393526411,1762763433889,-2000.0,0.00020924,2]
[393526412,1762763433901,-206.518784,0.00020924,2]
[393526413,1762763433912,-2500.0,0.00020958,2]
[393526414,1762763433923,-4050.51649476,0.0002096,2]
[393526415,1762763433935,-2500.0,0.00021019,2]
[393526416,1762763433946,-1588.14895532,0.00021048,2]
[393526417,1762763433958,-4050.51649476,0.00021104,2]
[393526418,1762763433968,-4050.51649476,0.00021248,2]
[393526419,1762763433980,-735.18853791,0.00021269,2]
[393526420,1762763433991,-460.0,0.00021351,2]
[393526421,1762763434004,-4050.51649476,0.00021391,2]
[393526422,1762763434016,-240.0,0.00021401,2]
[393526423,1762763434027,-960.39,0.00021462,3]
[393526424,1762763434037,-480.19,0.00021462,3]
[393526425,1762763434048,-2500.0,0.00021472,2]
[393526426,1762763434060,-2500.0,0.00021472,2]
[393526427,1762763434071,-1500.0,0.00021506,2]
[393526428,1762763434081,-1500.0,0.00021567,2]
[393526429,1762763434093,-480.0,0.00021612,2]
[393526430,1762763434105,-252.28268769,0.0002189,2]
[393526431,1762763434117,-560.0,0.00021898,2]
[393526432,1762763434128,-735.92372644,0.00022006,2]
[393526433,1762763434138,-240.1,0.0002201,3]
[393526434,1762763434148,-2504.64489535,0.0002202,2]
[393526435,1762763434159,-1500.0,0.0002202,2]
[393526436,1762763434170,-1920.77,0.00022118,3]
[393526437,1762763434181,-660.0,0.00022446,2]
[393526438,1762763434193,-986.0,0.00022582,2]
[393526439,1762763434205,-2167.0,0.00022582,2]
[393526440,1762763434217,-628.0,0.00022582,2]
[393526441,1762763434228,-413.0,0.00022582,2]
[393526442,1762763434240,-864.0,0.00022629,20]
[393526443,1762763434250,-1920.78,0.00022832,3]
[393526444,1762763434263,-960.38,0.00022832,3]
[393526445,1762763434275,-3157.72582511,0.0002294,2]
[393526446,1762763434288,-760.0,0.00022994,2]
[393526447,1762763434298,-4260.4570826,0.00022998,2]
[393526448,1762763434312,-154.843334,0.00023027,7]
[393526449,1762763434324,-500.0,0.00023055,2]
[393526450,1762763434334,-160.0,0.00023086,2]
[393526451,1762763434343,-160.0,0.00023086,2]
[393526452,1762763434354,-3157.72582511,0.00023096,2]
[393526453,1762763434365,-3157.72582511,0.00023343,2]
[393526454,1762763434375,-480.2,0.0002338,3]
[393526455,1762763434388,-3841.54,0.00023488,3]
[393526456,1762763434401,-860.0,0.00023542,2]
[393526457,1762763434413,-3157.72582511,0.00023645,2]
[393526458,1762763434425,-154.843334,0.00023879,10]
[393526459,1762763434435,-285.67304342,0.0002389,2]
[393526460,1762763434444,-500.0,0.00023893,2]
[393526461,1762763434455,-500.0,0.00023893,2]
[393526462,1762763434466,-500.0,0.00023893,2]
[393526463,1762763434476,-500.0,0.00023972,2]
[393526464,1762763434489,-422.39679512,0.00023973,2]
[393526465,1762763434500,-599.1967181,0.00023973,2]
[393526466,1762763434510,-504.23985669,0.00023973,2]
[393526467,1762763434520,-502.43931167,0.00023973,2]
[393526468,1762763434530,-500.0,0.00023973,2]
[393526469,1762763434540,-500.0,0.00023973,2]
[393526470,1762763434552,-3157.72582511,0.00023976,2]
[393526471,1762763434562,-500.0,0.00023989,2]
[393526472,1762763434572,-500.0,0.00023989,2]
[393526473,1762763434583,-500.0,0.00023989,2]
[393526474,1762763434593,-500.0,0.00023989,2]
[393526475,1762763434605,-93118.87151833,0.0002399,2]
[393526476,1762763434616,-500.0,0.00023994,2]
[393526477,1762763434628,-515.0,0.00024082,2]
[393526478,1762763434638,-960.0,0.0002409,2]
[393526479,1762763434649,-296.24,0.000241,7]
[393526480,1762763434660,-37232.77189565,0.00024142,2]
[393526481,1762763434670,-500.0,0.00024147,2]
[393526482,1762763434681,-196.53681869,0.00024147,2]
[393526483,1762763434691,-205.14522153,0.00024147,2]
[393526484,1762763434702,-494.76135564,0.00024147,2]
[393526485,1762763434715,-12773.07145392,0.00024148,2]
[393526486,1762763434726,-500.0,0.00024173,2]
[393526487,1762763434737,-508.62235089,0.00024173,2]
[393526488,1762763434751,-500.0,0.00024173,2]
[393526489,1762763434762,-500.0,0.00024173,2]
[393526490,1762763434772,-500.43125913,0.00024173,2]
[393526491,1762763434783,-530.94598941,0.00024173,2]
[393526492,1762763434795,-500.0,0.00024173,2]
[393526493,1762763434806,-500.0,0.00024173,2]
[393526494,1762763434816,-4346.020478,0.00024173,2]
[393526495,1762763434828,-204379.72466042,0.00024258,2]
[393526498,1762763437879,-222.67310491,0.00020615,2]
[393526499,1762763437889,-4050.51649476,0.00021535,2]
[393526500,1762763437899,-4050.51649476,0.00021679,2]
[393526501,1762763437908,-4050.51649476,0.00021823,2]
[393526502,1762763437917,-4054.56701125,0.00021967,2]
[393526503,1762763437926,-870.46,0.00024248,10]
[393526504,1762763437936,-87044.17114429,0.00024258,2]
[393526527,1762763831444,650.0,0.00032877,120]
[393526529,1762763879774,152.99,0.00015485,2]
[393526530,1762763880121,152.99,0.00015485,2]
[393526533,1762763969859,485.952609,0.00013699,2]
[393526541,1762764196018,870.0,0.0001962,3]
[393526588,1762764632348,-212.72601309,0.000188,2]
[393526591,1762764632359,-68.02452267,0.000188,2]
[393526596,1762764632402,-843.97547733,0.000188,2]
[393526598,1762764632412,-199.44272422,0.00018919,2]
[393526600,1762764632422,-494.55368973,0.00019667,2]
[393526819,1762764638239,-5.44631027,0.00019667,2]
[393526820,1762764638251,-500.0,0.00019667,2]
[393526821,1762764638261,-500.0,0.00019733,2]
[393526822,1762764638271,-500.0,0.00019833,2]
[393526823,1762764638280,-500.0,0.0001985,2]
[393526824,1762764638291,-500.0,0.0001985,2]
[393526825,1762764638300,-500.0,0.0001986,2]
[393526826,1762764638310,-500.0,0.0001986,2]
[393526827,1762764638319,-447.77876143,0.0001986,2]
[393526828,1762764638329,-14.5149283,0.0001986,2]
[393526829,1762764638341,-485.4850717,0.0001986,2]
[393526830,1762764638351,-485.952609,0.00020187,2]
[393526831,1762764638360,-1000.0,0.00020215,2]
[393526832,1762764638370,-1000.0,0.00020215,2]
[393526833,1762764638379,-500.0,0.00020281,2]
[393526834,1762764638389,-3168.42326577,0.00020298,2]
[393526835,1762764638399,-211.78245133,0.0002039,2]
[393526836,1762764638408,-500.0,0.0002039,2]
[393526837,1762764638525,-239.34694764,0.0002039,2]
[393526838,1762764638535,-500.0,0.0002039,2]
[393526839,1762764638546,-500.0,0.0002039,2]
[393526840,1762764638555,-500.0,0.0002039,2]
[393526841,1762764638567,-500.0,0.0002039,2]
[393526842,1762764638578,-500.0,0.0002039,2]
[393526843,1762764638587,-500.0,0.0002039,2]
[393526844,1762764638596,-500.0,0.0002039,2]
[393526845,1762764638606,-500.0,0.0002039,2]
[393526846,1762764638615,-485.85346254,0.0002039,2]
[393526847,1762764638625,-400.0,0.0002039,2]
[393526848,1762764638634,-500.0,0.0002039,2]
[393526849,1762764638644,-500.0,0.0002039,2]
[393526850,1762764638654,-500.0,0.0002039,2]
[393526851,1762764638663,-500.0,0.0002039,2]
[393526852,1762764638673,-28228.8876804,0.00020391,2]
[393526853,1762764638682,-500.0,0.00020398,2]
[393526854,1762764638692,-380.12245353,0.00020408,2]
[393526855,1762764638701,-1000.0,0.00020408,2]
[393526856,1762764638711,-414.720131,0.00020409,2]
[393526857,1762764638720,-1000.0,0.00020495,2]
[393526858,1762764638731,-1500.0,0.00020763,2]
[393526859,1762764638740,-235.34241457,0.00020919,2]
[393526860,1762764638749,-422.85456824,0.00020956,2]
[393526861,1762764638759,-584.91683742,0.00021311,2]
[393526862,1762764638769,-312.78823476,0.00021778,2]
[393526863,1762764638779,-238.071627,0.00021972,2]
[393526864,1762764638789,-238.071627,0.00022172,10]
[393526865,1762764638799,-628.0,0.00022708,2]
[393526866,1762764638808,-2167.0,0.00022708,2]
[393526867,1762764638818,-987.0,0.00022708,2]
[393526868,1762764638827,-312.78823476,0.00022828,2]
[393526869,1762764638837,-271.24210493,0.00022919,2]
[393526870,1762764638847,-160.0,0.00023071,2]
[393526871,1762764638856,-160.0,0.00023071,2]
[393526872,1762764638866,-260.0,0.00023398,2]
[393526873,1762764638877,-151.32,0.00023398,2]
[393526874,1762764638887,-151.32,0.00023398,2]
[393526875,1762764638896,-151.3,0.00023398,2]
[393526876,1762764638906,-500.0,0.00023543,2]
[393526877,1762764638916,-500.0,0.00023543,2]
[393526878,1762764638925,-504.76898142,0.00023543,2]
[393526879,1762764638935,-500.0,0.00023543,2]
[393526880,1762764638944,-203.82436984,0.00023613,2]
[393526881,1762764638954,-183.15215748,0.000238,5]
[393526882,1762764638964,-313.101023,0.00023877,2]
[393526883,1762764638974,-238.071627,0.00023879,10]
[393526884,1762764638984,-592.8099389,0.00023884,2]
[393526885,1762764638994,-592.8099389,0.00023884,2]
[393526886,1762764639005,-592.8099389,0.00023884,2]
[393526887,1762764639016,-226.1834332,0.00023884,2]
[393526888,1762764639026,-3157.72582516,0.00023993,2]
[393526889,1762764639036,-5070.35722432,0.00024064,2]
[393526890,1762764639046,-1008.88,0.00024072,10]
[393526891,1762764639055,-1646.8652391,0.00024082,2]
[393526892,1762764639066,-3058.4172852,0.00024082,2]
[393526893,1762764639075,-19356.30216117,0.00024082,2]
[393526935,1762764643488,-3639.6482068,0.00024082,2]
[393526941,1762764646581,-413.0,0.00022708,2]
[393526942,1762764646591,-495.36,0.00024082,2]
[393526943,1762764646948,-2897.6052618,0.00024082,2]
[393526945,1762764843511,210.56,0.0001962,3]
[393526946,1762764851633,824.03803886,0.0001962,3]
[393526965,1762765797029,150.0,0.0003287,120]
[393526969,1762765815523,150.0,0.0003287,120]
[393526987,1762765832503,-223.81610509,0.00019645,2]
[393526989,1762765832513,-776.18389491,0.00019645,2]
[393527124,1762765838308,-179.81610509,0.00019645,2]
[393527125,1762765838319,-106.18389491,0.00019744,2]
[393527126,1762765838360,-210.72610509,0.00019744,2]
[393527127,1762765838371,-212.72601309,0.00019745,2]
[393527128,1762765838380,-101.42257385,0.00019795,2]
[393527133,1762765840523,-97.39329323,0.00019795,2]
[393527134,1762765840537,-206.24655258,0.00019945,2]
[393527135,1762765840546,-300.0,0.0002179,2]
[393527136,1762765840555,-367.0305322,0.00021791,2]
[393527137,1762765840564,-660.65495796,0.00021791,2]
[393527138,1762765840575,-1173.32320533,0.00021791,2]
[393527139,1762765840584,-499.80828716,0.00021791,2]
[393527140,1762765840593,-433.69592187,0.00021791,2]
[393527141,1762765840606,-451.59621594,0.00021791,2]
[393527178,1762765843674,-14.36277908,0.00021791,2]
[393527179,1762765843684,-1599.38651892,0.00021791,2]
[393527180,1762765843694,-1384.66329866,0.00021791,2]
[393527189,1762765846818,-1111.87909571,0.00021791,2]
[393527190,1762765846827,-234.60272316,0.00021795,2]
[393527191,1762765846837,-202.360882,0.000219,2]
[393527192,1762765846846,-202.360882,0.00022172,10]
[393527193,1762765846856,-829.05720214,0.00022202,2]
[393527194,1762765846865,-207.26430054,0.00022202,2]
[393527195,1762765846874,-517.44857965,0.00022202,2]
[393527196,1762765846883,-212.4782992,0.00022202,2]
[393527197,1762765846953,-1857.3160194,0.00022202,2]
[393527198,1762765846963,-451.6284209,0.00022259,2]
[393527199,1762765846972,-465.08568432,0.000223,2]
[393527200,1762765846981,-300.0,0.000223,2]
[393527201,1762765846991,-424.24297115,0.0002234,2]
[393527202,1762765847000,-4803.6750923,0.00022456,2]
[393527203,1762765847009,-1235.1489293,0.00022456,2]
[393527204,1762765847019,-152.2696305,0.00022456,2]
[393527205,1762765847028,-160.0,0.0002251,2]
[393527206,1762765847037,-196.03164199,0.00022667,2]
[393527207,1762765847046,-338.53,0.00022708,2]
[393527208,1762765847056,-2167.0,0.00022708,2]
[393527209,1762765847065,-628.0,0.00022708,2]
[393527210,1762765847075,-160.0,0.00023033,2]
[393527211,1762765847084,-260.0,0.00023058,2]
[393527212,1762765847093,-1690.0934254,0.00023288,30]
[393527213,1762765847102,-399.99776637,0.00023499,2]
[393527214,1762765847111,-310.98041837,0.000235,2]
[393527222,1762765948353,1310.25593013,0.0001962,3]
[393527223,1762766167628,2999.99,0.000196,3]
[393527398,1762767032566,-300.0,0.00017999,2]
[393527400,1762767032576,-300.0,0.00017999,2]
[393527402,1762767032585,-300.0,0.00017999,2]
[393527403,1762767032594,-300.0,0.00017999,2]
[393527404,1762767032604,-198.17659734,0.00017999,2]
[393527512,1762767041081,-1001.82340266,0.00017999,2]
[393527513,1762767041091,-300.0,0.00017999,2]
[393527514,1762767041101,-193.74939772,0.00018,2]
[393527515,1762767041110,-7596.85919962,0.00018,2]
[393527610,1762767043751,-4895.68050847,0.00018,2]
[393527611,1762767043762,-228.62428931,0.0002,2]
[393527612,1762767043772,-160.83362038,0.0002,2]
[393527614,1762767043782,-207.28593221,0.000207,2]
[393527616,1762767043792,-1000.0,0.00021398,2]
[393527617,1762767043802,-259.209936,0.00021712,2]
[393527618,1762767043814,-263.4991809,0.00022,2]
[393527619,1762767043823,-1404.82567943,0.00022,5]
[393527620,1762767043833,-1111.28392689,0.00022118,2]
[393527621,1762767043844,-1268.46274217,0.00022118,2]
[393527622,1762767043918,-884.71576139,0.00022118,2]
[393527623,1762767043927,-207.28593221,0.00022153,2]
[393527624,1762767043937,-259.209936,0.00022172,10]
[393527625,1762767043947,-3264.46243045,0.00022309,2]
[393527626,1762767043956,-281.8359839,0.00022652,2]
[393527627,1762767043965,-289.01958163,0.00022677,2]
[393527628,1762767043975,-220.65038473,0.00022677,2]
[393527629,1762767043986,-3264.46243045,0.00022678,2]
[393527631,1762767043997,-2772.37035754,0.00022697,2]
[393527632,1762767044006,-413.0,0.00022797,2]
[393527633,1762767044016,-3264.46243045,0.00022845,2]
[393527634,1762767044025,-501.32181729,0.00023,2]
[393527635,1762767044035,-160.0,0.00023003,2]
[393527636,1762767044044,-3264.46243045,0.00023021,2]
[393527637,1762767044054,-179.78,0.00023054,2]
[393527638,1762767044064,-35614.3453637,0.00023064,2]
[393527639,1762767044075,-951.2517278,0.00023064,2]
[393527640,1762767044084,-1311.0056927,0.00023064,2]
[393527641,1762767044094,-500.0,0.00023073,2]
[393527642,1762767044103,-253.9121002,0.000235,3]
[393527643,1762767044114,-153.0,0.000235,3]
[393527644,1762767044123,-153.0,0.000235,3]
[393527645,1762767044132,-151.0,0.000235,3]
[393527646,1762767044142,-166.0,0.000235,3]
[393527647,1762767044151,-151.0,0.000235,3]
[393527648,1762767044160,-153.0,0.000235,3]
[393527649,1762767044169,-153.0,0.000235,3]
[393527650,1762767044179,-153.0,0.000235,3]
[393527651,1762767044188,-153.0,0.000235,3]
[393527652,1762767044197,-50.37854072,0.000235,3]
[393527653,1762767044278,-102.62145928,0.000235,3]
[393527654,1762767044288,-153.0,0.000235,3]
[393527655,1762767044297,-271.18019941,0.000235,3]
[393527656,1762767044307,-153.0,0.000235,3]
[393527657,1762767044316,-150.0,0.000236,2]
[393527658,1762767044326,-207.28593221,0.00023606,2]
[393527659,1762767044337,-731.20549755,0.00023621,2]
[393527660,1762767044347,-281.8359839,0.00023663,2]
[393527661,1762767044356,-382.51092765,0.00023783,2]
[393527662,1762767044367,-117.48907235,0.00023783,2]
[393527663,1762767044376,-500.0,0.00023829,2]
[393527664,1762767044385,-3380.23814956,0.00023858,2]
[393527665,1762767044394,-167.47588913,0.00023879,10]
[393527666,1762767044405,-91.73404687,0.00023879,10]
[393527667,1762767044415,-1268.54,0.00023938,10]
[393527668,1762767044424,-1000.61344558,0.00023938,10]
[393527685,1762767536768,200.0,0.0002958,120]
[393527686,1762767539456,200.0,0.0002958,120]
[393527687,1762767542018,200.0,0.0002958,120]
[393527688,1762767608611,1000.0,0.00032877,120]
[393527690,1762767865563,459.939889,0.00013699,2]
[393527698,1762768182846,325.0,0.00032877,120]
[393527754,1762768231903,-459.939889,0.00020187,2]
[393527757,1762768231912,-183.60759986,0.00020267,2]
[393527759,1762768231922,-200.69469321,0.00021234,2]
[393527760,1762768231931,-360.88919734,0.00021234,2]
[393527763,1762768231942,-236.069178,0.0002207,2]
[393527765,1762768231952,-216.65696783,0.00022267,2]
[393527767,1762768231961,-184.306203,0.00022296,2]
[393527769,1762768231971,-236.069178,0.000223,10]
[393527771,1762768231980,-306.168488,0.0002235,2]
[393527773,1762768231990,-160.0,0.00022806,2]
[393527774,1762768231999,-1200.0,0.00022895,2]
[393527776,1762768232008,-300.0,0.00022895,2]
[393527778,1762768232018,-1200.0,0.00022895,2]
[393527781,1762768232027,-300.0,0.00022895,2]
[393527782,1762768232036,-628.0,0.00022896,2]
[393527784,1762768232045,-2167.0,0.00022896,2]
[393527786,1762768232054,-790.98906623,0.0002301,2]
[393527789,1762768232065,-476.52,0.0002301,2]
[393527908,1762768239928,-2262.20367237,0.0002301,2]
[393527910,1762768239938,-7635.821257,0.0002301,2]
[393527912,1762768239948,-154.1765491,0.00023205,2]
[393527914,1762768239957,-322.2593043,0.00023205,2]
[393527916,1762768239966,-535.1707256,0.00023341,2]
[393527918,1762768239976,-179.79,0.00023838,2]
[393527920,1762768239986,-469.55,0.00023838,10]
[393527922,1762768239995,-812.09,0.00023838,10]
[393527924,1762768240004,-9173.47971084,0.00023838,3]
[393527927,1762768240016,-532.5,0.00023838,3]
[393528178,1762768242894,-918.04567894,0.00023838,3]
[393528186,1762768243002,-400.22100341,0.00023838,3]
[393528187,1762768243013,-711.48248578,0.00023838,3]
[393528201,1762768246096,-1149.7,0.00023838,3]
[393528207,1762768246416,-1638.35112103,0.00023838,3]
[393528208,1762768246426,-4.48034155,0.00023838,10]
[393528210,1762768418395,10000.0,0.00032877,120]
[393528211,1762768434676,10000.0,0.00032877,120]
[393528212,1762768451143,5000.0,0.00032877,120]
[393528214,1762768886563,323.36,0.00032877,120]
[393528231,1762769407953,1197.0,0.00017682,2]
[393528278,1762769431978,-183.37214746,0.00020347,2]
[393528280,1762769431988,-149.26082947,0.00020347,2]
[393528290,1762769432083,-844.73917053,0.00020347,2]
[393528292,1762769432093,-220.332627,0.00022309,2]
[393528294,1762769432102,-216.379134,0.00022347,2]